Department family,Entity,Date,Expense type,Expense area,Supplier,Transaction number,Amount,Description,Supplier Postcode,Expenditure Type,Supplier Type
HM Procurator General and Treasury Solicitor,Government Legal Department,05/01/2023,Agency Staff: Legal,Legal Advisory Group,Alexander Mann Solutions Limited,245970,25048.93,Payment for interim legal professionals,EC2N 3AQ,Administration,
HM Procurator General and Treasury Solicitor,Government Legal Department,05/01/2023,Agency Staff: Legal,Legal Advisory Group,Alexander Mann Solutions Limited,245972,45578.02,Payment for interim legal professionals,EC2N 3AQ,Administration,
HM Procurator General and Treasury Solicitor,Government Legal Department,05/01/2023,Agency Staff: Legal,Legal Advisory Group,Alexander Mann Solutions Limited,245977,38820.44,Payment for interim legal professionals,EC2N 3AQ,Administration,
HM Procurator General and Treasury Solicitor,Government Legal Department,05/01/2023,Agency Staff: Legal,Legal Advisory Group,Alexander Mann Solutions Limited,245983,25432.18,Payment for interim legal professionals,EC2N 3AQ,Administration,
HM Procurator General and Treasury Solicitor,Government Legal Department,05/01/2023,Counsel Fees,Legal case disbursements,Counsel,1024759,36990.00,Payment of Counsel fees for legal cases,,Administration,
HM Procurator General and Treasury Solicitor,Government Legal Department,05/01/2023,E-Disclosure Fees,Legal case disbursements,Epiq Systems Ltd,1024768,36718.75,Payment for e-disclosure services for legal case,EC2R 8DU,Administration,
HM Procurator General and Treasury Solicitor,Government Legal Department,05/01/2023,E-Disclosure Fees,Legal case disbursements,Epiq Systems Ltd,1024769,43032.70,Payment for e-disclosure services for legal case,EC2R 8DU,Administration,
HM Procurator General and Treasury Solicitor,Government Legal Department,05/01/2023,Solicitor's Agents Fees,Legal case disbursements,Womble Bond Dickinson Llp,1024564,27500.00,Payment for professional services for legal case,BS1 6DZ,Administration,
HM Procurator General and Treasury Solicitor,Government Legal Department,05/01/2023,Solicitor's Agents Fees,Legal case disbursements,Womble Bond Dickinson Llp,1024565,27500.00,Payment for professional services for legal case,BS1 6DZ,Administration,
HM Procurator General and Treasury Solicitor,Government Legal Department,05/01/2023,Solicitor's Agents Fees,Legal case disbursements,Mills & Reeve,1024722,49623.00,Payment for professional services for legal case,EC4R 9AT,Administration,
HM Procurator General and Treasury Solicitor,Government Legal Department,05/01/2023,Solicitor's Agents Fees,Legal case disbursements,Jmw Solicitors Llp,1024855,23380.73,Payment for professional services for legal case,M3 3HG,Administration,
HM Procurator General and Treasury Solicitor,Government Legal Department,05/01/2023,Solicitor's Agents Fees,Legal case disbursements,Blackfords Llp,1024882,21619.89,Payment for professional services for legal case,EC4A 4EN,Administration,
HM Procurator General and Treasury Solicitor,Government Legal Department,06/01/2023,Accommodation: Rates,Corporate Resources Group,City Of Westminster (Business Rates),246038,29435.91,Payment of rates,SE1 4LS,Administration,Public Sector
HM Procurator General and Treasury Solicitor,Government Legal Department,10/01/2023,Agency Staff: Admin,Corporate Resources Group,Alexander Mann Solutions Limited,246202,21222.52,Payment for agency staff,EC2N 3AQ,Administration,
HM Procurator General and Treasury Solicitor,Government Legal Department,10/01/2023,Agency Staff: Legal,Litigation Division,Alexander Mann Solutions Limited,246067,36831.18,Payment for interim legal professionals,EC2N 3AQ,Administration,
HM Procurator General and Treasury Solicitor,Government Legal Department,10/01/2023,Agency Staff: Legal,Litigation Division,Alexander Mann Solutions Limited,246126,37543.19,Payment for interim legal professionals,EC2N 3AQ,Administration,
HM Procurator General and Treasury Solicitor,Government Legal Department,10/01/2023,Agency Staff: Legal,Litigation Division,Alexander Mann Solutions Limited,246069,77179.92,Payment for interim legal professionals,EC2N 3AQ,Administration,
HM Procurator General and Treasury Solicitor,Government Legal Department,10/01/2023,Agency Staff: Legal,Litigation Division,Alexander Mann Solutions Limited,246128,52629.28,Payment for interim legal professionals,EC2N 3AQ,Administration,
HM Procurator General and Treasury Solicitor,Government Legal Department,10/01/2023,Agency Staff: Legal,Litigation Division,Alexander Mann Solutions Limited,246044,42609.63,Payment for interim legal professionals,EC2N 3AQ,Administration,
HM Procurator General and Treasury Solicitor,Government Legal Department,10/01/2023,Agency Staff: Legal,Litigation Division,Alexander Mann Solutions Limited,246122,34154.32,Payment for interim legal professionals,EC2N 3AQ,Administration,
HM Procurator General and Treasury Solicitor,Government Legal Department,10/01/2023,Agency Staff: Legal,Legal Advisory Group,Alexander Mann Solutions Limited,246204,28582.19,Payment for interim legal professionals,EC2N 3AQ,Administration,
HM Procurator General and Treasury Solicitor,Government Legal Department,10/01/2023,Counsel Fees,Legal case disbursements,Counsel,1025333,25515.00,Payment of Counsel fees for legal cases,,Administration,
HM Procurator General and Treasury Solicitor,Government Legal Department,10/01/2023,E-Disclosure Fees,Legal case disbursements,Anexsys Ltd,1025284,27945.73,Payment for e-disclosure services for legal case,EC1R 3BP,Administration,
HM Procurator General and Treasury Solicitor,Government Legal Department,10/01/2023,Gls Training Programme,Corporate Resources Group,Cabinet Office,246117,31500.00,Payment for Training,FY5 3FW,Administration,Public Sector
HM Procurator General and Treasury Solicitor,Government Legal Department,12/01/2023,Prof Prog & Tech Fees,Corporate Resources Group,Shared Services Connected Ltd,246358,22325.00,Payment for professional services,HP2 7AH,Administration,
HM Procurator General and Treasury Solicitor,Government Legal Department,12/01/2023,Travel& Accommodation Contract,Corporate Resources Group,Corporate Travel Management (North) Limited,246316,66718.25,Payment for travel and accommodation services,BD1 5HQ,Administration,
HM Procurator General and Treasury Solicitor,Government Legal Department,17/01/2023,Accommodation: Rent,Corporate Resources Group,Gva Grimley Ltd,246485,41385.17,Payment for rent and/or service charge,B1 2JJ,Administration,
HM Procurator General and Treasury Solicitor,Government Legal Department,17/01/2023,E-Disclosure Fees,Legal case disbursements,Epiq Systems Ltd,1026257,28563.89,Payment for e-disclosure services for legal case,EC2R 8DU,Administration,
HM Procurator General and Treasury Solicitor,Government Legal Department,17/01/2023,Recruitment: Non-Lawyers,Corporate Resources Group,Irg Advisors T/A Odgers Berndtson,246479,21250.00,Payment for recruitment services,EC4M 6XD,Administration,
HM Procurator General and Treasury Solicitor,Government Legal Department,19/01/2023,Agency Staff: Legal,Litigation Division,Alexander Mann Solutions Limited,246611,59412.27,Payment for interim legal professionals,EC2N 3AQ,Administration,
HM Procurator General and Treasury Solicitor,Government Legal Department,19/01/2023,Counsel Fees,Legal case disbursements,Counsel,1026728,26523.00,Payment of Counsel fees for legal cases,,Administration,
HM Procurator General and Treasury Solicitor,Government Legal Department,19/01/2023,Solicitor's Agents Fees,Legal case disbursements,Ernst & Young Llp,1026942,28160.10,Payment for professional services for legal case,SE1 7EU,Administration,
HM Procurator General and Treasury Solicitor,Government Legal Department,19/01/2023,E-Disclosure Fees,Legal case disbursements,Anexsys Ltd,1026837,25035.89,Payment for e-disclosure services for legal case,EC1R 3BP,Administration,
HM Procurator General and Treasury Solicitor,Government Legal Department,19/01/2023,Expert Report,Legal case disbursements,Time Quantum Expert Forensics Ltd,1026855,22362.50,Payment for professional services for legal case,EC2N 2AT,Administration,
HM Procurator General and Treasury Solicitor,Government Legal Department,19/01/2023,Expert Report,Legal case disbursements,Frontier Economics Ltd,1026890,32470.00,Payment for professional services for legal case,WC1V 6DA,Administration,
HM Procurator General and Treasury Solicitor,Government Legal Department,19/01/2023,Ext Serv:Security Clearances,Corporate Resources Group,Cabinet Office,246593,58724.09,Payment for staff vetting process,FY5 3FW,Administration,Public Sector
HM Procurator General and Treasury Solicitor,Government Legal Department,19/01/2023,Maintenance: Hardware,Corporate Resources Group,Cdw Limited,246623,66666.65,Payment for hardware maintenance,EC4M 7RB,Administration,
HM Procurator General and Treasury Solicitor,Government Legal Department,19/01/2023,Accommodation: Rent,Corporate Resources Group,Bnp Paribas,245852,-76826.10,Refund of rent and/or service charge,B2 2QQ,Administration,
HM Procurator General and Treasury Solicitor,Government Legal Department,24/01/2023,Advisory External Legal Spend,Legal Advisory Group,Addleshaw Goddard Llp,246701,22000.00,Payment for professional services,LS1 4ER,Administration,
HM Procurator General and Treasury Solicitor,Government Legal Department,24/01/2023,Agency Staff: Legal,Litigation Division,Alexander Mann Solutions Limited,246677,32456.12,Payment for interim legal professionals,EC2N 3AQ,Administration,
HM Procurator General and Treasury Solicitor,Government Legal Department,24/01/2023,Agency Staff: Legal,Litigation Division,Alexander Mann Solutions Limited,246664,58499.89,Payment for interim legal professionals,EC2N 3AQ,Administration,
HM Procurator General and Treasury Solicitor,Government Legal Department,24/01/2023,Agency Staff: Legal,Litigation Division,Alexander Mann Solutions Limited,246662,32942.59,Payment for interim legal professionals,EC2N 3AQ,Administration,
HM Procurator General and Treasury Solicitor,Government Legal Department,24/01/2023,Expert Report,Legal case disbursements,Frontier Economics Ltd,1027206,63735.00,Payment for professional services for legal case,WC1V 6DA,Administration,
HM Procurator General and Treasury Solicitor,Government Legal Department,24/01/2023,Travel& Accommodation Contract,Corporate Resources Group,Corporate Travel Management (North) Limited,246693,31578.97,Payment for travel and accommodation services,BD1 5HQ,Administration,
HM Procurator General and Treasury Solicitor,Government Legal Department,26/01/2023,Accommodation: Rent,Corporate Resources Group,Government Property Agency,246849,31798.01,Payment for rent and/or service charge,B2 2QQ,Administration,Public Sector
HM Procurator General and Treasury Solicitor,Government Legal Department,26/01/2023,Accommodation: Rent,Corporate Resources Group,Government Property Agency,246800,1349454.69,Payment for rent and/or service charge,B2 2QQ,Administration,Public Sector
HM Procurator General and Treasury Solicitor,Attorney General's Office,26/01/2023,Accommodation: Rent,Attorney General's Office,Government Property Agency,30246,248635.23,Payment for rent and/or service charge,B2 2QQ,Administration,Public Sector
HM Procurator General and Treasury Solicitor,Attorney General's Office,26/01/2023,Accommodation: Rent,Attorney General's Office,Government Property Agency,30247,249117.80,Payment for rent and/or service charge,B2 2QQ,Administration,Public Sector
HM Procurator General and Treasury Solicitor,Government Legal Department,26/01/2023,Agency Staff: Legal,Commercial Legal Group,Alexander Mann Solutions Limited,246816,35211.85,Payment for interim legal professionals,EC2N 3AQ,Administration,
HM Procurator General and Treasury Solicitor,Government Legal Department,26/01/2023,Agency Staff: Legal,Commercial Legal Group,Alexander Mann Solutions Limited,246839,37299.07,Payment for interim legal professionals,EC2N 3AQ,Administration,
HM Procurator General and Treasury Solicitor,Government Legal Department,26/01/2023,Maintenance: Hardware,Corporate Resources Group,Workspace Technology Ltd,246804,33909.05,Payment for hardware maintenance,B75 7BU,Administration,
HM Procurator General and Treasury Solicitor,Government Legal Department,26/01/2023,Network Services,Corporate Resources Group,Colt Technology Services,246806,23587.56,Payment for IT network services ,EC3A 7QN,Administration,
HM Procurator General and Treasury Solicitor,Government Legal Department,26/01/2023,Network Services,Corporate Resources Group,Colt Technology Services,246841,23587.56,Payment for IT network services ,EC3A 7QN,Administration,
HM Procurator General and Treasury Solicitor,Attorney General's Office,31/01/2023,Accommodation: Rent,Attorney General's Office,Government Property Agency,30251,249117.80,Payment for rent and/or service charge,B2 2QQ,Administration,Public Sector
HM Procurator General and Treasury Solicitor,Attorney General's Office,31/01/2023,Accommodation: Rent,Attorney General's Office,Government Property Agency,30252,249117.80,Payment for rent and/or service charge,B2 2QQ,Administration,Public Sector
HM Procurator General and Treasury Solicitor,Government Legal Department,31/01/2023,Agency Staff: Admin,Corporate Resources Group,Alexander Mann Solutions Limited,247036,-48173.87,Refund relating to payment for agency staff,EC2N 3AQ,Administration,
HM Procurator General and Treasury Solicitor,Government Legal Department,31/01/2023,Agency Staff: Admin,Corporate Resources Group,Alexander Mann Solutions Limited,247064,49902.90,Payment for agency staff,EC2N 3AQ,Administration,
HM Procurator General and Treasury Solicitor,Government Legal Department,31/01/2023,Agency Staff: Legal,Litigation Division,Alexander Mann Solutions Limited,246935,35142.87,Payment for interim legal professionals,EC2N 3AQ,Administration,
HM Procurator General and Treasury Solicitor,Government Legal Department,31/01/2023,Agency Staff: Legal,Litigation Division,Alexander Mann Solutions Limited,246937,55625.10,Payment for interim legal professionals,EC2N 3AQ,Administration,
HM Procurator General and Treasury Solicitor,Government Legal Department,31/01/2023,Agency Staff: Legal,Litigation Division,Alexander Mann Solutions Limited,246939,41316.64,Payment for interim legal professionals,EC2N 3AQ,Administration,
HM Procurator General and Treasury Solicitor,Government Legal Department,31/01/2023,Agency Staff: Legal,Commercial Legal Group,Alexander Mann Solutions Limited,246930,-25403.08,Refund relating to payment for interim legal professionals,EC2N 3AQ,Administration,
HM Procurator General and Treasury Solicitor,Government Legal Department,31/01/2023,Agency Staff: Legal,Commercial Legal Group,Alexander Mann Solutions Limited,246944,-27723.92,Refund relating to payment for interim legal professionals,EC2N 3AQ,Administration,
HM Procurator General and Treasury Solicitor,Government Legal Department,31/01/2023,Commnctns: Mobile Telephones,Corporate Resources Group,Telefonica UK Ltd,247020,22402.38,Payment for mobile telephony,SL1 4DX,Administration,
HM Procurator General and Treasury Solicitor,Government Legal Department,31/01/2023,Counsel Fees,Legal case disbursements,Counsel,1028040,41985.00,Payment of Counsel fees for legal cases,,Administration,
HM Procurator General and Treasury Solicitor,Government Legal Department,31/01/2023,E-Disclosure Fees,Legal case disbursements,Epiq Systems Ltd,1028070,109098.50,Payment for e-disclosure services for legal case,EC2R 8DU,Administration,
HM Procurator General and Treasury Solicitor,Government Legal Department,31/01/2023,E-Disclosure Fees,Legal case disbursements,Epiq Systems Ltd,1028082,125021.50,Payment for e-disclosure services for legal case,EC2R 8DU,Administration,
HM Procurator General and Treasury Solicitor,Government Legal Department,31/01/2023,E-Disclosure Fees,Legal case disbursements,Anexsys Ltd,1028096,59465.00,Payment for e-disclosure services for legal case,EC1R 3BP,Administration,
HM Procurator General and Treasury Solicitor,Government Legal Department,31/01/2023,E-Disclosure Fees,Legal case disbursements,Anexsys Ltd,1028106,29440.71,Payment for e-disclosure services for legal case,EC1R 3BP,Administration,
HM Procurator General and Treasury Solicitor,Government Legal Department,31/01/2023,E-Disclosure Fees,Legal case disbursements,Anexsys Ltd,1028107,26688.39,Payment for e-disclosure services for legal case,EC1R 3BP,Administration,
HM Procurator General and Treasury Solicitor,Government Legal Department,31/01/2023,E-Disclosure Fees,Legal case disbursements,Legastat Ltd.,1028183,89943.76,Payment for e-disclosure services for legal case,WC2A 2JB,Administration,
HM Procurator General and Treasury Solicitor,Government Legal Department,31/01/2023,E-Disclosure Fees,Legal case disbursements,Legastat Ltd.,1028212,52938.25,Payment for e-disclosure services for legal case,WC2A 2JB,Administration,
HM Procurator General and Treasury Solicitor,Government Legal Department,31/01/2023,Fixed Assets: Acquisitions,Corporate Resources Group,Insight Direct (UK) Limited,247038,159459.30,Payment for the acquisition of fixed assets,S9 2BU,Administration,
HM Procurator General and Treasury Solicitor,Government Legal Department,31/01/2023,Solicitor's Agents Fees,Legal case disbursements,Tlt Solicitors,1028120,53200.00,Payment for professional services for legal case,BS1 6TP,Administration,
NIL return for HM Crown Prosecution Inspectorate,,,,,,,,,,,
